bitfinex/quotes_ETHUSD_20220202
["timestamp","ask_amount","ask_price","bid_price","bid_amount"]
[1643760177583,5.9451,2793.7,2791.6,0.6089]
[1643760177584,0.86556105,2793.3,2791.6,0.6089]
[1643760177828,0.68666105,2792.9,2791.7,2.27639994]
[1643760178029,0.68666105,2792.9,2791.8,0.1789]
[1643760178030,0.76829786,2792.7,2791.8,0.1789]
[1643760178231,0.68666105,2792.6,2791.8,0.1789]
[1643760179035,0.1789,2793.3,2791.8,2.33489995]
[1643760179234,0.01228551,2793.7,2791.9,3.62501]
[1643760179235,0.1789,2793.6,2791.9,3.62501]
[1643760179635,0.1789,2793.6,2792.0,1.0]
[1643760179836,0.1789,2793.6,2792.1,3.78971]
[1643760180043,0.76611081,2793.3,2793.0,0.41212899]
[1643760180241,1.45277186,2793.3,2792.2,1.0]
[1643760180438,0.76611081,2793.3,2792.2,1.0]
[1643760180837,0.76611081,2793.3,2791.9,2.0962]
[1643760181042,0.76611081,2793.3,2791.9,1.20121]
[1643760181239,0.76611081,2793.3,2792.1,0.34280524]
[1643760181240,0.68666105,2792.5,2792.1,0.34280524]
[1643760181439,2.37065342,2793.2,2791.9,0.20121]
[1643760181440,0.68899755,2792.4,2791.9,0.20121]
[1643760181679,0.68666105,2792.5,2792.0,1.87287]
[1643760181886,0.01207073,2793.9,2792.4,0.99999999]
[1643760182103,0.89882187,2795.0,2792.4,0.99999999]
[1643760182104,0.179,2794.5,2793.8,0.99999999]
[1643760182294,0.82155408,2795.7,2794.4,0.99999999]
[1643760182295,0.37607,2795.2,2794.4,0.99999999]
[1643760182488,0.37607,2795.2,2795.0,0.01259764]
[1643760182489,0.17888,2795.1,2795.0,0.01259764]
[1643760182687,0.1789,2796.0,2794.5,0.1789]
[1643760182688,0.03305684,2794.9,2794.5,0.1789]
[1643760182880,0.03305684,2794.9,2794.6,0.56798874]
[1643760183080,0.03305684,2794.9,2794.8,0.99999999]
[1643760183281,0.03305684,2794.9,2794.8,1.17889999]
[1643760183480,0.03305684,2794.9,2794.8,1.47889999]
[1643760184888,0.03305684,2794.9,2794.8,1.90889999]
[1643760185198,0.03305684,2794.9,2794.7,1.1789]
[1643760185199,0.03305684,2794.9,2794.7,0.1789]
[1643760186037,3.78360496,2794.8,2794.7,0.1789]
[1643760186238,0.93360496,2794.8,2794.7,0.57516401]
[1643760186439,0.93360496,2794.8,2794.7,0.1789]
[1643760186643,0.93360496,2794.8,2793.9,1.0]
[1643760186644,2.85,2794.7,2793.4,0.1789]
[1643760186843,2.85,2794.7,2792.8,0.99999999]
[1643760186844,2.19763818,2794.6,2792.8,0.99999999]
[1643760187041,2.19763818,2794.6,2792.9,0.1789]
[1643760187243,0.1789,2794.5,2792.9,0.1789]
[1643760187446,0.1789,2794.5,2793.8,0.36084346]
[1643760187644,0.88180635,2794.2,2793.8,0.36084346]
[1643760187860,0.1789,2794.1,2794.0,0.99999999]
[1643760188053,0.03305684,2794.9,2794.0,0.99999999]
[1643760188054,0.1789,2794.8,2794.0,0.99999999]
[1643760190297,0.03305684,2794.9,2794.3,0.37491569]
[1643760190901,0.03305684,2794.9,2794.0,0.99999999]
[1643760190902,0.93695252,2794.6,2794.0,0.99999999]
[1643760192201,0.03305684,2794.9,2793.9,0.1789]
[1643760192399,0.03305684,2794.9,2794.4,0.99999999]
[1643760192600,0.03305684,2794.9,2794.4,1.37424135]
[1643760192851,0.03305684,2794.9,2794.4,0.37424136]
[1643760193248,0.88180005,2794.6,2793.9,0.1789]
[1643760193445,0.88180005,2794.6,2793.7,0.1789]
[1643760193646,0.88180005,2794.6,2793.1,0.1789]
[1643760193647,0.1789,2794.5,2793.3,0.1789]
[1643760193844,0.1789,2794.5,2793.2,0.1789]
[1643760194243,0.1789,2794.5,2793.6,0.41416952]
[1643760194444,0.71655938,2793.7,2793.6,0.41416952]
[1643760194646,0.71655938,2793.7,2793.2,1.17889999]
[1643760195048,0.71655938,2793.7,2793.2,0.1789]
[1643760195247,3.38444498,2794.5,2793.3,0.99999999]
[1643760195248,3.7956,2794.4,2793.3,0.99999999]
[1643760195449,1.3532,2794.5,2793.8,0.99999999]
[1643760195656,1.3532,2794.5,2794.0,0.99999999]
[1643760195657,0.1789,2794.5,2794.0,0.99999999]
[1643760195846,0.3,2794.6,2794.0,0.99999999]
[1643760196250,1.18916188,2794.7,2794.0,0.99999999]
[1643760196447,0.69211614,2794.1,2793.7,0.40941422]
[1643760196689,0.69211614,2794.1,2793.6,0.99999999]
[1643760197685,0.69211614,2794.1,2793.2,0.1789]
[1643760197886,0.69211614,2794.1,2793.4,0.33372281]
[1643760198090,0.69211614,2794.1,2793.4,0.1789]
[1643760198091,2.22452736,2794.0,2793.4,0.1789]
[1643760198294,2.29463621,2794.0,2793.2,0.1789]
[1643760198488,0.6840808,2793.5,2793.0,0.1789]
[1643760198687,0.6840808,2793.5,2792.8,0.1789]
[1643760199084,2.29463621,2794.0,2792.8,0.1789]
[1643760199085,2.29463621,2794.0,2793.2,0.36011516]
[1643760199290,1.3898,2794.1,2793.2,1.36011515]
[1643760199291,0.1789,2794.1,2793.2,1.36011515]
[1643760199488,0.1789,2794.3,2793.2,1.53901515]
[1643760199687,0.1789,2794.4,2793.2,1.83901515]
[1643760200085,3.09761008,2794.5,2793.2,0.36011516]
[1643760200327,0.5769081,2794.5,2793.2,0.36011516]
[1643760200528,0.72845583,2794.0,2793.2,0.36011516]
[1643760200728,1.02845583,2794.0,2793.2,0.36011516]
[1643760201336,1.02845583,2794.0,2793.1,0.1789]
[1643760201337,2.48105172,2793.9,2793.1,0.1789]
[1643760201739,2.46504717,2793.9,2793.1,0.1789]
[1643760201936,0.70905573,2793.3,2793.1,0.1789]
[1643760202138,0.1789,2793.9,2793.1,0.1789]
[1643760202441,0.1789,2793.9,2793.3,1.31692201]
[1643760202636,0.1789,2794.2,2793.3,1.31692201]
[1643760203037,2.51707135,2794.5,2793.3,1.31692201]
[1643760203038,0.1789,2794.4,2793.3,1.31692201]
[1643760203237,0.83319535,2794.0,2793.3,1.31692201]
[1643760203741,0.1789,2794.5,2793.9,0.99999999]
[1643760203941,0.03305684,2794.9,2793.9,0.43]
[1643760204190,0.03305684,2794.9,2793.5,1.60889999]
[1643760204395,0.1789,2794.8,2793.5,1.60889999]
[1643760204588,0.1789,2794.8,2793.5,1.17889999]
[1643760204791,0.92592982,2794.0,2793.5,1.17889999]
[1643760205591,0.92592982,2794.0,2793.5,0.1789]
[1643760206794,0.92592982,2794.0,2793.8,0.3253126]
[1643760207594,0.1789,2794.5,2793.8,0.3253126]
[1643760208229,1.2288,2794.7,2794.2,0.99999999]
[1643760208533,0.1789,2794.8,2794.2,0.99999999]
[1643760208728,0.86155595,2794.4,2794.2,0.99999999]
[1643760209531,0.86155595,2794.4,2793.8,0.3253126]
[1643760209732,0.86155595,2794.4,2793.8,1.32531259]
[1643760210132,0.86155595,2794.4,2794.2,0.99999999]
[1643760212575,0.86155595,2794.4,2793.7,0.1789]
[1643760212778,0.86155595,2794.4,2793.6,0.1789]
[1643760212779,0.86155595,2794.4,2794.2,0.99999999]
[1643760213176,0.86155595,2794.4,2793.6,1.58362087]
[1643760213379,0.86155595,2794.4,2793.6,0.58362088]
[1643760213577,0.86155595,2794.4,2794.2,0.99999999]
[1643760214183,0.86155595,2794.4,2793.6,0.58362088]
[1643760214383,0.86155595,2794.4,2794.2,0.99999999]
[1643760215827,0.86155595,2794.4,2793.6,0.58844609]
[1643760216125,0.86155595,2794.4,2793.9,0.99999999]
[1643760217531,0.86155595,2794.4,2793.7,0.99999999]
[1643760219094,0.86155595,2794.4,2793.9,0.99999999]
[1643760219292,1.51254096,2794.3,2793.9,0.99999999]
[1643760219490,1.5115522,2794.3,2793.9,0.99999999]
[1643760219690,1.5115522,2794.3,2794.2,0.99999999]
[1643760219890,0.86155595,2794.4,2794.2,0.99999999]
[1643760220892,0.1789,2794.6,2794.2,0.99999999]
[1643760221096,0.1789,2794.8,2794.4,0.99999999]
[1643760221297,0.03305684,2794.9,2794.4,0.99999999]
[1643760221298,0.21195684,2794.9,2794.4,0.99999999]
[1643760221497,0.03305684,2794.9,2794.4,0.99999999]
[1643760222094,0.67363265,2794.6,2794.4,0.99999999]
[1643760223731,0.67363265,2794.6,2793.9,0.1789]
[1643760223732,0.67363265,2794.6,2794.3,0.99999999]
[1643760226334,0.67363265,2794.6,2793.7,0.1789]
[1643760226335,0.97363265,2794.6,2793.9,0.99999999]
[1643760226591,1.86840005,2794.6,2793.9,0.99999999]
[1643760226783,1.86840005,2794.6,2793.7,0.1789]
[1643760226784,0.73102892,2794.0,2793.7,0.1789]
[1643760227791,0.73102892,2794.0,2793.9,0.99999999]
[1643760229797,1.03102892,2794.0,2793.3,0.1789]
[1643760230100,0.17888,2793.9,2793.0,0.1789]
[1643760230351,0.84793193,2793.8,2793.0,0.1789]
[1643760230546,0.17888,2793.7,2793.0,0.1789]
[1643760230749,0.1789,2793.6,2793.0,0.1789]
[1643760230949,0.85844517,2793.5,2793.0,0.1789]
[1643760231151,0.895156,2793.4,2793.0,0.1789]
[1643760231347,0.3,2793.3,2793.0,0.1789]
[1643760231947,2.53580115,2793.3,2793.0,0.1789]
[1643760232349,0.3,2793.3,2793.0,0.1789]
[1643760232748,0.1789,2793.2,2793.0,0.1789]
[1643760236784,0.4789,2793.3,2793.0,0.1789]
[1643760237188,0.85844517,2793.5,2792.5,0.3578]
[1643760237390,1.0739452,2793.8,2793.3,0.99999999]
[1643760237391,0.1789,2793.8,2793.3,0.99999999]
[1643760237584,1.1529,2793.9,2792.8,0.516]
[1643760237832,1.1529,2793.9,2792.9,0.1789]
[1643760238033,0.1789,2793.8,2793.0,0.99999999]
[1643760238233,0.1789,2794.0,2793.0,0.99999999]
[1643760238434,0.70650139,2793.3,2793.0,0.99999999]
[1643760238631,0.70650139,2793.3,2792.9,0.1789]
[1643760238834,0.70650139,2793.3,2792.8,0.58093268]
[1643760239437,0.70650139,2793.3,2792.8,0.40203268]
[1643760239640,0.70650139,2793.3,2792.9,0.99999999]
[1643760240135,0.1789,2793.8,2792.8,0.40203268]
[1643760240338,1.51283999,2793.7,2792.8,0.40203268]
[1643760240540,1.81283999,2793.7,2792.8,0.40203268]
[1643760240839,0.4789,2793.8,2792.8,0.40203268]
[1643760241037,1.51286117,2793.7,2792.8,0.40203268]
[1643760241875,0.76246404,2793.4,2792.8,0.40203268]
[1643760242281,1.06246404,2793.4,2792.8,0.40203268]
[1643760242475,1.06246404,2793.4,2792.8,0.40081802]
[1643760242879,1.06246404,2793.4,2793.0,0.99999999]
[1643760243176,1.06246404,2793.4,2792.7,0.99999999]
[1643760243576,1.06246404,2793.4,2792.6,0.19122983]
[1643760243779,1.06246404,2793.4,2792.6,0.1789]
[1643760243984,1.51305616,2793.3,2792.2,0.1789]
[1643760244178,0.8952263,2793.1,2792.2,0.1789]
[1643760244381,0.8117539,2792.7,2792.3,0.3997068]
[1643760244981,0.3,2793.0,2792.3,0.3997068]
[1643760246031,0.79100976,2792.8,2792.3,0.3997068]
[1643760246232,1.09100976,2792.8,2792.3,0.3997068]
[1643760246633,1.09100976,2792.8,2792.2,1.17889999]
[1643760247946,1.09100976,2792.8,2792.1,0.1789]
[1643760247947,0.78934898,2792.3,2792.1,0.1789]
[1643760248145,0.78934898,2792.3,2791.7,0.1789]
[1643760248339,1.08934898,2792.3,2791.5,0.1789]
[1643760248541,1.08934898,2792.3,2791.2,2.03124498]
[1643760248542,1.08934898,2792.3,2791.3,0.1789]
[1643760248739,1.08934898,2792.3,2791.1,0.1789]
[1643760248740,0.1789,2792.2,2791.1,0.1789]
[1643760248937,0.1789,2792.2,2791.4,0.4208338]
[1643760249390,3.585,2792.7,2791.4,0.4208338]
[1643760249391,0.3,2792.3,2791.4,0.4208338]
[1643760249590,0.1789,2792.2,2791.4,0.4208338]
[1643760249791,1.7911459,2792.3,2791.4,0.4208338]
[1643760250097,0.79181792,2791.8,2791.4,0.4208338]
[1643760250289,0.1789,2792.2,2791.4,0.4208338]
[1643760251292,0.1789,2792.2,2791.4,1.42083379]
[1643760251491,0.68809544,2791.9,2791.4,1.42083379]
[1643760251892,0.98809544,2791.9,2791.4,1.42083379]
[1643760254635,0.1791,2792.2,2791.4,1.42083379]
[1643760254636,0.1791,2792.2,2791.6,0.99999999]
[1643760254840,3.15923,2792.7,2792.0,0.99999999]
[1643760254841,0.8953358,2792.7,2792.0,0.99999999]
[1643760255039,0.1789,2793.1,2792.4,0.99999999]
[1643760255249,6.9192799,2793.3,2792.3,0.36030471]
[1643760255250,0.1789,2793.2,2792.3,0.36030471]
[1643760255537,0.1789,2793.0,2792.2,0.99999999]
[1643760255738,0.7337323,2792.6,2792.0,0.1789]
[1643760255937,0.895373,2792.5,2792.0,0.1789]
[1643760256578,1.195373,2792.5,2792.0,0.1789]
[1643760256976,0.88840957,2792.1,2792.0,0.1789]
[1643760257476,1.18840957,2792.1,2792.0,0.1789]
[1643760257676,3.49261952,2792.1,2791.5,0.1789]
[1643760257882,3.49261952,2792.1,2791.3,0.56056838]
[1643760258480,3.49261952,2792.1,2791.3,0.38166838]
[1643760258877,1.18840957,2792.1,2791.3,1.38166837]
[1643760259076,0.8159284,2791.6,2791.3,1.38166837]
[1643760259281,0.8955272,2792.0,2791.3,1.38166837]
[1643760259681,3.10058676,2792.0,2791.3,1.38166837]
[1643760259982,0.8955272,2792.0,2791.3,1.38166837]
[1643760260629,0.6801155,2791.7,2791.3,1.38166837]
[1643760260928,0.8955272,2792.0,2791.3,1.38166837]
[1643760261129,0.8955272,2792.0,2791.3,0.38166838]
[1643760261332,0.8955272,2792.0,2791.4,0.99999999]
[1643760262333,0.84722373,2791.9,2791.4,0.99999999]
[1643760262731,1.14722373,2791.9,2791.4,0.99999999]
[1643760265889,0.84722373,2791.9,2791.3,0.38166838]
[1643760266087,0.84722373,2791.9,2791.4,0.99999999]
[1643760267931,0.1791,2792.2,2791.6,0.99999999]
[1643760268533,0.1791,2792.2,2791.3,0.38166838]
[1643760268534,0.1791,2792.2,2792.1,0.99999999]
[1643760268739,0.1789,2792.6,2792.4,0.42746306]
[1643760268934,1.08052456,2792.7,2792.1,0.3]
[1643760269439,1.08052456,2792.7,2791.7,1.47889999]
[1643760269638,0.8953284,2792.6,2791.7,0.4789]
[1643760269839,0.3,2792.5,2791.8,0.37294343]
[1643760270239,2.49199864,2792.5,2791.8,0.37294343]
[1643760270438,0.3,2792.5,2791.8,0.37294343]
[1643760270640,0.69721809,2792.2,2791.8,0.37294343]
[1643760270844,0.99721809,2792.2,2791.8,0.37294343]
[1643760271439,0.99721809,2792.2,2791.5,0.1789]
[1643760271883,0.99721809,2792.2,2791.6,0.99999999]
[1643760272283,0.99721809,2792.2,2791.8,0.99999999]
[1643760272484,0.99721809,2792.2,2791.5,0.1789]
[1643760272884,0.8954827,2792.1,2791.5,0.1789]
[1643760273087,0.8954827,2792.1,2791.7,0.32969515]
[1643760273488,0.8954827,2792.1,2791.5,0.1789]
[1643760273684,0.8954827,2792.1,2791.3,1.24999999]
[1643760273884,0.8954827,2792.1,2791.3,0.99999999]
[1643760275329,0.8954827,2792.1,2791.6,0.42293221]
[1643760279187,0.8954827,2792.1,2791.3,0.99999999]
[1643760279983,0.8954827,2792.1,2791.3,1.29999999]
[1643760280186,1.17631809,2792.2,2791.6,0.99999999]
[1643760280187,0.4791,2792.2,2791.6,0.99999999]
[1643760280385,0.1789,2792.4,2791.8,0.99999999]
[1643760280586,0.1789,2792.4,2791.4,0.1789]
[1643760280786,0.8953818,2792.5,2791.6,0.99999999]
[1643760281188,1.58830139,2792.3,2791.8,0.3750641]
[1643760281586,1.88830139,2792.3,2791.4,0.1789]
[1643760281784,2.06720139,2792.3,2791.4,0.1789]
[1643760281985,2.06720139,2792.3,2791.4,1.17889999]
[1643760282387,4.30876073,2792.3,2791.4,0.1789]
[1643760282586,4.25339004,2792.3,2791.4,0.1789]
[1643760282832,4.25339004,2792.3,2791.6,0.3171045]
[1643760282833,2.06720139,2792.3,2791.6,0.3171045]
[1643760283434,2.06720139,2792.3,2791.6,1.31710449]
[1643760283634,2.06720139,2792.3,2791.6,0.3171045]
[1643760284237,4.25458065,2792.3,2791.2,0.99999999]
[1643760284437,2.06720139,2792.3,2791.2,0.99999999]
[1643760284736,2.06720139,2792.3,2791.4,0.99999999]
[1643760285339,2.06720139,2792.3,2791.7,0.41046315]
[1643760285539,1.88830139,2792.3,2791.7,0.41046315]
[1643760287291,2.06720139,2792.3,2791.7,0.41046315]
[1643760287486,4.22462223,2792.3,2791.7,0.41046315]
[1643760287685,2.06720139,2792.3,2791.7,0.41046315]
[1643760289492,1.51357494,2792.2,2791.7,0.41046315]
[1643760290336,1.88830139,2792.3,2791.7,0.41046315]
[1643760290634,1.88830139,2792.3,2791.5,0.99999999]
[1643760291136,1.51353593,2792.2,2791.5,0.99999999]
[1643760291533,1.88830139,2792.3,2791.5,0.99999999]
[1643760291739,1.51352703,2792.2,2791.5,0.99999999]
[1643760291933,1.51352703,2792.2,2791.7,0.35521123]
[1643760292134,1.88830139,2792.3,2791.7,0.35521123]
[1643760292333,1.88830139,2792.3,2791.5,0.99999999]
[1643760292535,1.51351015,2792.2,2791.5,0.99999999]
[1643760299939,1.51351015,2792.2,2791.5,0.99898882]
[1643760300140,1.51351015,2792.2,2791.4,0.1789]
[1643760300440,0.8954681,2792.0,2791.8,0.99898882]
[1643760300840,0.8954681,2792.0,2791.6,0.99898882]
[1643760301341,1.1954681,2792.0,2791.6,0.99898882]
[1643760301784,0.8954681,2792.0,2791.6,0.99898882]
[1643760302191,0.8954681,2792.0,2791.4,0.1789]
[1643760302384,0.8954681,2792.0,2791.9,0.99898882]
[1643760302587,0.87170969,2792.3,2791.9,0.99898882]
[1643760302787,1.51345179,2792.2,2791.9,0.99898882]
[1643760303585,1.88828969,2792.3,2791.9,0.99898882]
[1643760303788,0.8954578,2792.2,2791.9,0.99898882]
[1643760304291,1.58828969,2792.3,2791.9,0.99898882]
[1643760304891,1.47648658,2792.3,2791.9,0.99898882]
[1643760305093,1.51345892,2792.2,2791.9,0.99898882]
[1643760305340,1.47648658,2792.3,2791.9,0.99898882]
[1643760305942,1.51344976,2792.2,2791.9,0.99898882]
[1643760309904,2.8653224,2792.6,2791.5,0.1789]
[1643760309905,0.1789,2792.6,2791.5,0.1789]
[1643760310097,0.89537,2792.9,2792.2,0.39926132]
[1643760310098,1.5133381,2792.5,2792.2,0.39926132]
[1643760310296,0.1789,2793.0,2792.4,0.99898882]
[1643760310496,5.55443193,2793.2,2792.4,0.99898882]
[1643760310497,1.5132473,2792.9,2792.4,0.99898882]
[1643760310695,0.1789,2793.1,2792.4,0.99898882]
[1643760310696,1.5132473,2793.0,2792.4,0.99898882]
[1643760310897,1.5132473,2792.9,2792.4,0.99898882]
[1643760311096,1.5132473,2792.8,2792.4,0.99898882]
[1643760311297,1.5132473,2792.8,2792.7,0.38565169]
[1643760311503,1.0741526,2793.1,2792.7,1.38464051]
[1643760311504,1.5132473,2793.0,2792.7,1.38464051]
[1643760312200,3.0216,2793.3,2792.7,0.99898882]
[1643760312201,1.5132473,2792.9,2792.7,0.99898882]
[1643760312408,0.84793193,2793.5,2792.3,1.0]
[1643760312409,1.5132473,2792.8,2792.3,1.3]
[1643760312599,0.80857383,2793.0,2792.5,0.99898882]
[1643760312857,1.51316292,2792.9,2792.5,0.99898882]
[1643760313253,1.51316292,2792.9,2792.6,0.38452557]
[1643760313749,1.51316292,2792.9,2792.5,1.89404882]
[1643760314356,1.51316292,2792.9,2792.5,0.99898882]
[1643760314554,1.51316292,2792.9,2792.3,2.07302882]
[1643760314754,1.51316292,2792.9,2792.3,1.89412882]
[1643760315155,1.51316292,2792.9,2792.4,0.35716554]
[1643760315357,1.51316292,2792.9,2792.2,0.1789]
[1643760315556,1.51316292,2792.9,2792.1,1.17788882]
[1643760316583,1.51316292,2792.9,2792.1,1.50439441]
[1643760317696,0.77455063,2792.5,2792.1,0.1789]
[1643760318090,1.51337549,2792.4,2792.1,0.1789]
[1643760319493,1.51337549,2792.4,2791.9,0.99898882]
[1643760322634,1.51210949,2792.4,2791.9,0.99898882]
[1643760322840,0.1789,2792.9,2791.9,0.99898882]
[1643760323234,0.4789,2792.9,2791.9,0.99898882]
[1643760323433,0.4789,2792.9,2792.0,0.89525]
[1643760323634,0.82648155,2792.7,2792.0,0.89525]
[1643760323834,1.12648155,2792.7,2792.0,0.89525]
[1643760324093,0.4789,2792.9,2792.6,0.99898882]
[1643760324094,0.1789,2792.9,2792.6,0.99898882]
[1643760324293,1.7905798,2793.0,2792.6,0.99898882]
[1643760324294,0.1789,2793.0,2792.6,0.99898882]
[1643760324494,0.1789,2793.1,2792.6,0.99898882]
[1643760324891,0.1789,2793.2,2792.6,0.99898882]
[1643760325090,0.1789,2793.2,2792.6,1.38981151]
[1643760325993,0.74713463,2793.2,2792.6,1.38981151]
[1643760326191,0.1789,2793.1,2792.7,0.99898882]
[1643760326392,0.1789,2793.1,2792.4,0.89511]
[1643760326591,0.1789,2793.1,2792.5,0.99898882]
[1643760327399,0.1789,2793.1,2792.2,1.7902]
[1643760327601,0.1789,2793.1,2792.7,0.37525584]
[1643760327862,0.1789,2793.1,2792.7,1.37424466]
[1643760328270,0.1789,2793.1,2792.2,2.0902]
[1643760328470,0.1789,2793.1,2792.5,0.99898882]
[1643760328670,0.1789,2793.1,2792.5,1.24898882]
[1643760330872,0.92603463,2793.2,2792.7,0.32582456]
[1643760331073,0.92603463,2793.2,2792.5,1.24898882]
[1643760331275,0.89524,2793.1,2792.5,0.25]
[1643760332293,0.89524,2793.1,2792.6,0.40245918]
[1643760332493,0.89524,2793.1,2792.5,0.25]
[1643760333094,0.77563015,2792.7,2792.5,0.25]
[1643760333796,1.07563015,2792.7,2792.5,0.25]
[1643760334798,0.77563015,2792.7,2792.5,0.25]
[1643760335199,1.13418169,2792.7,2792.5,0.25]
[1643760335441,1.61308169,2792.7,2791.9,0.99898882]
[1643760335642,0.89543,2792.6,2791.9,0.99898882]
[1643760335846,0.81697645,2792.0,2791.9,0.99898882]
[1643760341198,0.81697645,2792.0,2791.5,0.4289]
[1643760341507,0.81697645,2792.0,2790.4,9.91760644]
[1643760341508,5.43960786,2791.9,2790.6,0.13819997]
[1643760341707,0.35798,2791.8,2790.6,0.13819997]
[1643760341898,0.35798,2791.8,2790.7,0.99898882]
[1643760341899,2.53960786,2791.7,2790.7,0.99898882]
[1643760342097,0.01200718,2791.6,2790.7,0.99898882]
[1643760342299,0.86646451,2790.8,2790.7,0.99898882]
[1643760344445,0.86646451,2790.8,2790.6,0.1791]
[1643760344648,0.86646451,2790.8,2790.5,0.1791]
[1643760344845,0.86646451,2790.8,2790.4,0.99898882]
[1643760345345,0.86646451,2790.8,2790.1,0.1791]
[1643760345546,0.43919986,2790.7,2789.9,0.99898882]
[1643760345747,0.8960322,2790.5,2789.9,0.99898882]
[1643760345946,0.8960322,2790.5,2789.7,0.1791]
[1643760346251,0.8960322,2790.5,2789.5,0.1792]
[1643760346443,0.8960322,2790.5,2789.5,1.17818882]
[1643760346697,0.76463364,2789.8,2789.5,1.47818882]
[1643760346902,0.8961204,2790.3,2789.5,0.4792]
[1643760347092,0.8961204,2790.3,2789.9,0.99898882]
[1643760347295,0.8961204,2790.3,2789.8,0.99898882]
[1643760347697,0.8961204,2790.3,2789.5,0.1792]
[1643760348098,0.92581622,2790.1,2789.8,0.99898882]
[1643760348502,3.23161235,2790.5,2789.8,0.99898882]
[1643760348806,1.0752577,2790.5,2789.8,0.99898882]
[1643760350002,0.72946094,2790.3,2789.8,0.99898882]
[1643760352351,0.72946094,2790.3,2789.5,0.1792]
[1643760352553,0.72946094,2790.3,2789.5,0.99898882]
[1643760352750,0.72946094,2790.3,2789.5,1.29898882]
[1643760353351,0.72946094,2790.3,2789.4,0.1792]
[1643760353352,0.31818887,2790.1,2789.4,1.17818882]
[1643760353555,1.21438887,2790.1,2789.4,1.17818882]
[1643760353753,0.97946094,2790.3,2789.4,0.99898882]
[1643760354389,0.97946094,2790.3,2789.2,0.1792]
[1643760354591,0.97946094,2790.3,2789.2,1.17818882]
[1643760354790,1.60415691,2790.3,2789.2,1.17818882]
[1643760354994,2.09556671,2790.2,2789.2,1.17818882]
[1643760355391,1.60415691,2790.3,2789.2,1.17818882]
[1643760355591,2.1014639,2790.2,2789.2,1.17818882]
[1643760356395,2.1014639,2790.2,2789.2,0.1792]
[1643760356599,0.89624,2790.1,2789.3,0.99898882]
[1643760357964,0.89624,2790.1,2789.2,0.1792]
[1643760357965,2.24566889,2790.0,2789.2,0.1792]
[1643760358168,0.89632,2789.9,2789.2,0.1792]
[1643760358370,2.46666189,2789.8,2789.2,0.1792]
[1643760358574,0.516,2789.7,2789.0,1.1112076]
[1643760358773,2.3977155,2789.6,2789.0,1.1112076]
[1643760358972,0.89457733,2789.3,2789.0,1.1112076]
[1643760361999,2.10858897,2789.2,2788.4,1.17818882]
[1643760362194,2.28778897,2789.2,2788.4,0.1792]
[1643760362795,2.28778897,2789.2,2788.2,1.17788882]
[1643760362997,3.18435897,2789.2,2788.2,0.1789]
[1643760363298,0.43471375,2789.1,2788.3,0.99898882]
[1643760363499,0.93395474,2788.4,2788.3,0.99898882]
[1643760363705,0.93395474,2788.4,2787.8,3.7837]
[1643760363706,0.93395474,2788.4,2787.6,0.25]
[1643760363707,2.95,2788.3,2787.6,0.25]
[1643760363913,2.95,2788.3,2787.1,9.3768094]
[1643760363914,2.01703828,2788.3,2787.1,1.1895]
[1643760364113,2.01703828,2788.3,2787.3,0.1793]
[1643760364114,0.6952,2788.2,2787.3,0.1793]
[1643760364318,0.6952,2788.2,2786.9,0.1792]
[1643760364319,0.43506319,2787.4,2786.9,0.1792]
[1643760364508,0.43506319,2787.4,2786.1,3.174]
[1643760364509,0.74559066,2786.2,2785.8,1.131]
[1643760364718,0.74559066,2786.2,2785.1,10.644]
[1643760364719,0.74559066,2786.2,2785.7,1.1112076]
[1643760365445,0.1794,2786.8,2785.7,1.1112076]
[1643760366249,0.4294,2786.8,2785.7,1.1112076]
[1643760366454,0.92673584,2785.8,2785.7,1.1112076]
[1643760368053,0.516,2786.4,2785.7,1.1112076]
[1643760368256,6.8818422,2787.1,2785.7,1.1112076]
[1643760368257,0.1794,2786.5,2785.7,1.1112076]
[1643760368458,0.1794,2787.0,2785.7,1.1112076]
[1643760368656,1.32671,2787.0,2785.7,1.1112076]
[1643760369090,0.44979847,2785.8,2785.7,1.1112076]
[1643760369297,0.89270308,2785.8,2785.7,1.1112076]
[1643760370299,0.89270308,2785.8,2785.7,1.0612076]
[1643760370696,2.74106987,2786.7,2785.7,1.0612076]
[1643760370697,0.1794,2786.6,2785.7,1.0612076]
[1643760371696,0.85206197,2785.8,2785.7,1.0612076]
[1643760371897,1.21548832,2785.8,2785.7,1.0612076]
[1643760372597,2.47073345,2785.8,2785.7,1.0612076]
[1643760373244,1.25524513,2785.8,2785.7,1.0612076]
[1643760376052,2.33494513,2785.8,2785.7,1.0612076]
[1643760379910,2.33494513,2785.8,2785.7,1.0112076]
[1643760380545,3.0,2785.7,2784.6,1.0]
[1643760380743,2.34757669,2785.8,2784.1,1.4816]
[1643760380744,2.64757669,2785.8,2784.4,1.3]
[1643760380946,2.64757669,2785.8,2784.7,0.04035806]
[1643760380947,1.43464513,2785.7,2784.7,0.04035806]
[1643760381147,0.36121638,2785.4,2784.7,0.04035806]
[1643760381342,0.36121638,2785.4,2784.6,0.04092649]
[1643760381545,0.36121638,2785.4,2784.5,0.04149491]
[1643760381546,0.79518939,2785.0,2784.5,0.04149491]
[1643760381743,1.25524513,2785.4,2784.4,2.18292427]
[1643760381943,1.25524513,2785.0,2784.5,0.04149491]
[1643760382347,1.25524513,2785.4,2784.5,0.04149491]
[1643760382549,1.25524513,2785.0,2784.5,0.04149491]
[1643760382745,1.25524513,2785.0,2784.8,0.42960323]
[1643760382945,0.85721746,2785.4,2784.8,0.42960323]
[1643760382946,2.11246259,2785.4,2784.8,0.42960323]
[1643760383146,1.25524513,2785.0,2784.9,2.12408411]
[1643760383343,1.25524513,2785.0,2784.9,1.0]
[1643760383545,1.25524513,2785.4,2784.9,1.0]
[1643760383746,0.1794,2786.1,2784.8,0.42960323]
[1643760384198,0.52019578,2786.1,2784.8,0.42960323]
[1643760384602,0.52019578,2786.1,2784.5,0.04149491]
[1643760384603,0.8760255,2785.2,2784.5,0.04149491]
[1643760384899,0.8760255,2785.2,2784.4,1.04206333]
[1643760385303,0.8760255,2785.2,2784.5,0.04149491]
[1643760385701,0.8760255,2785.2,2784.5,0.47700905]
[1643760386103,0.8760255,2785.2,2784.6,0.04092649]
[1643760386703,0.8760255,2785.2,2784.3,0.04263176]
[1643760388452,0.37547218,2785.1,2784.3,0.04263176]
[1643760388849,0.8760255,2785.2,2784.3,0.04263176]
[1643760390556,0.8760255,2785.2,2784.4,0.1795]
[1643760390956,0.8760255,2785.2,2784.5,0.04149491]
[1643760391357,3.04816756,2785.2,2784.5,0.04149491]
[1643760391597,3.04816756,2785.2,2784.4,0.04206333]
[1643760391799,0.1794,2785.1,2784.4,0.04206333]